bitfinex/quotes_BTCUSD_20240718
["timestamp","ask_amount","ask_price","bid_price","bid_amount"]
[1721297641114,1.49702158,64786.0,64785.0,0.0236017]
[1721297643102,1.49697993,64786.0,64785.0,0.0236017]
[1721297644094,1.75864931,64786.0,64785.0,0.0236017]
[1721297644303,1.80563007,64786.0,64785.0,0.0236017]
[1721297646436,2.11433807,64786.0,64785.0,0.0236017]
[1721297646564,1.80563007,64786.0,64785.0,0.0236017]
[1721297647279,1.8042205,64786.0,64785.0,0.0236017]
[1721297648380,1.8685205,64786.0,64785.0,0.0236017]
[1721297650446,1.82294931,64786.0,64785.0,0.0236017]
[1721297650615,1.86831478,64786.0,64785.0,0.0236017]
[1721297651060,2.38452707,64786.0,64785.0,0.0236017]
[1721297651816,2.33262952,64786.0,64785.0,0.0236017]
[1721297652029,2.30462952,64786.0,64785.0,0.0236017]
[1721297652230,2.34062952,64786.0,64785.0,0.0236017]
[1721297652433,2.31862952,64786.0,64785.0,0.0236017]
[1721297653021,2.30462952,64786.0,64785.0,0.0236017]
[1721297653467,2.31862952,64786.0,64785.0,0.0236017]
[1721297653669,2.31664542,64786.0,64785.0,0.0236017]
[1721297654069,2.19275731,64786.0,64785.0,0.0236017]
[1721297654290,2.3166458,64786.0,64785.0,0.0236017]
[1721297654493,2.6753538,64786.0,64785.0,0.0236017]
[1721297654805,2.67569076,64786.0,64785.0,0.0236017]
[1721297655401,2.8134229,64786.0,64785.0,7e-07]
[1721297656045,2.7634229,64786.0,64785.0,7e-07]
[1721297656244,2.31698276,64786.0,64785.0,7e-07]
[1721297656991,2.19275731,64786.0,64785.0,7e-07]
[1721297657141,2.45520104,64786.0,64785.0,7e-07]
[1721297657350,2.66937603,64786.0,64785.0,7e-07]
[1721297657554,2.80711215,64786.0,64785.0,7e-07]
[1721297657910,2.49840415,64786.0,64785.0,7e-07]
[1721297658134,2.49572258,64786.0,64785.0,7e-07]
[1721297658336,2.35798646,64786.0,64785.0,7e-07]
[1721297658545,2.49572258,64786.0,64785.0,7e-07]
[1721297658789,2.80443058,64786.0,64785.0,7e-07]
[1721297658983,2.49572258,64786.0,64785.0,7e-07]
[1721297659981,2.35798646,64786.0,64785.0,7e-07]
[1721297660207,2.27794451,64786.0,64785.0,7e-07]
[1721297660359,2.45232404,64786.0,64785.0,7e-07]
[1721297661217,2.50232404,64786.0,64785.0,7e-07]
[1721297661414,2.45232404,64786.0,64785.0,7e-07]
[1721297661757,2.31457518,64786.0,64785.0,7e-07]
[1721297662290,2.24417518,64786.0,64785.0,7e-07]
[1721297662488,2.31457518,64786.0,64785.0,7e-07]
[1721297663300,2.2347414,64786.0,64785.0,7e-07]
[1721297663501,2.23457137,64786.0,64785.0,7e-07]
[1721297663949,2.3142458,64786.0,64785.0,7e-07]
[1721297666675,2.19007574,64786.0,64785.0,7e-07]
[1721297666874,2.31457815,64786.0,64785.0,7e-07]
[1721297667491,2.46892772,64786.0,64785.0,7e-07]
[1721297668279,2.51892772,64786.0,64785.0,7e-07]
[1721297668481,2.46892772,64786.0,64785.0,7e-07]
[1721297669961,2.34442531,64786.0,64785.0,7e-07]
[1721297670156,2.46921833,64786.0,64785.0,7e-07]
[1721297672028,2.47840333,64786.0,64785.0,7e-07]
[1721297673079,2.7874423,64786.0,64785.0,7e-07]
[1721297673305,2.78744249,64786.0,64785.0,7e-07]
[1721297675022,2.324358,64786.0,64785.0,7e-07]
[1721297675449,1.527257,64778.0,64777.0,0.0091357]
[1721297675655,1.89700382,64778.0,64777.0,0.0091357]
[1721297676077,2.20574982,64778.0,64777.0,0.0091357]
[1721297676456,2.24110802,64778.0,64777.0,0.0091357]
[1721297676781,2.30027503,64778.0,64777.0,0.0091357]
[1721297677083,2.31427503,64778.0,64777.0,0.0091357]
[1721297677488,2.09605175,64778.0,64777.0,0.0091357]
[1721297677662,2.17639652,64778.0,64777.0,0.0091357]
[1721297678748,2.17907554,64778.0,64777.0,0.0091357]
[1721297679498,2.17639652,64778.0,64777.0,0.0091357]
[1721297679698,2.05088474,64778.0,64777.0,0.0091357]
[1721297679896,2.17636469,64778.0,64777.0,0.0091357]
[1721297682308,2.31926469,64778.0,64777.0,0.0091357]
[1721297682953,2.17636469,64778.0,64777.0,0.0091357]
[1721297683477,1.67173874,64778.0,64777.0,0.0091357]
[1721297683771,1.86771432,64778.0,64777.0,0.0091357]
[1721297684156,1.87003666,64778.0,64777.0,0.0091357]
[1721297686480,1.74213874,64778.0,64777.0,0.0091357]
[1721297686679,1.78860585,64778.0,64777.0,0.0091357]
[1721297687272,1.78860585,64778.0,64777.0,0.0723357]
[1721297688081,1.74213874,64778.0,64777.0,0.0723357]
[1721297688301,1.78844457,64778.0,64777.0,0.0723357]
[1721297689790,1.74213874,64778.0,64777.0,0.0723357]
[1721297689954,1.78850139,64778.0,64777.0,0.0723357]
[1721297693258,1.78836959,64778.0,64777.0,0.0723357]
[1721297695148,1.78836959,64778.0,64777.0,0.1506357]
[1721297696317,1.78836959,64778.0,64777.0,0.0874357]
[1721297696520,1.78831358,64778.0,64777.0,0.0874357]
[1721297697275,1.78831358,64778.0,64777.0,0.1481357]
[1721297698978,1.78831358,64778.0,64777.0,0.0874357]
[1721297699178,1.78831358,64778.0,64777.0,0.0091357]
[1721297699582,1.7882993,64778.0,64777.0,0.0091357]
[1721297700154,1.79097928,64778.0,64777.0,0.0091357]
[1721297700570,1.7882993,64778.0,64777.0,0.0091357]
[1721297700745,1.78835391,64778.0,64777.0,0.0091357]
[1721297701944,1.74213874,64778.0,64777.0,0.0091357]
[1721297702159,1.78824018,64778.0,64777.0,0.0091357]
[1721297708279,1.85294018,64778.0,64777.0,0.0091357]
[1721297708490,1.80683874,64778.0,64777.0,0.0091357]
[1721297708702,1.97827793,64778.0,64777.0,0.0091357]
[1721297709862,1.89769792,64778.0,64777.0,0.0091357]
[1721297710471,1.97786519,64778.0,64777.0,0.0091357]
[1721297710668,1.89769792,64778.0,64777.0,0.0091357]
[1721297711811,1.89737269,64778.0,64777.0,0.0091357]
[1721297712193,1.89739117,64778.0,64777.0,0.0091357]
[1721297714740,1.78726158,64778.0,64777.0,0.0091357]
[1721297715189,1.7873702,64778.0,64777.0,0.0091357]
[1721297715526,1.7873702,64778.0,64777.0,0.0894357]
[1721297717772,1.7873702,64778.0,64777.0,0.0091357]
[1721297718193,1.9245702,64778.0,64777.0,0.0091357]
[1721297718396,1.92446442,64778.0,64777.0,0.0091357]
[1721297718538,2.00474856,64778.0,64777.0,0.0091357]
[1721297718741,1.92446442,64778.0,64777.0,0.0091357]
[1721297721249,1.9271442,64778.0,64777.0,0.0091357]
[1721297721455,1.88201852,64778.0,64777.0,0.0091357]
[1721297721776,1.96939684,64778.0,64777.0,0.0091357]
[1721297726296,1.97022684,64778.0,64777.0,0.0091357]
[1721297727962,1.92519779,64778.0,64777.0,0.0091357]
[1721297728127,1.97012026,64778.0,64777.0,0.0091357]
[1721297728795,2.05021787,64778.0,64777.0,0.0091357]
[1721297730776,2.35896387,64778.0,64777.0,0.0091357]
[1721297731284,2.35907196,64778.0,64777.0,0.0091357]
[1721297732642,2.38690436,64778.0,64777.0,0.0091357]
[1721297733455,2.38690436,64778.0,64776.0,0.009185]
[1721297733456,0.55160136,64778.0,64776.0,0.009185]
[1721297733679,2.58232791,64777.0,64776.0,0.009185]
[1721297734064,2.53099091,64777.0,64776.0,0.009185]
[1721297734300,2.58099091,64777.0,64776.0,0.009185]
[1721297734527,2.53590588,64777.0,64776.0,0.009185]
[1721297734757,2.58078071,64777.0,64776.0,0.009185]
[1721297734993,2.53078071,64777.0,64776.0,0.009185]
[1721297735682,2.54478071,64777.0,64776.0,0.009185]
[1721297735917,2.53078071,64777.0,64776.0,0.009185]
[1721297736202,2.54478071,64777.0,64776.0,0.009185]
[1721297737341,2.55878071,64777.0,64776.0,0.009185]
[1721297737550,2.55889473,64777.0,64776.0,0.009185]
[1721297738274,2.69685236,64777.0,64776.0,0.009185]
[1721297739232,2.85120193,64777.0,64776.0,0.009185]
[1721297740779,2.72616994,64777.0,64776.0,0.009185]
[1721297740922,2.85109648,64777.0,64776.0,0.009185]
[1721297741122,2.58821231,64777.0,64776.0,0.009185]
[1721297741323,2.85106617,64777.0,64776.0,0.009185]
[1721297741746,2.63310347,64777.0,64776.0,0.009185]
[1721297741950,2.85108663,64777.0,64776.0,0.009185]
[1721297742352,2.85376596,64777.0,64776.0,0.009185]
[1721297742960,2.85108663,64777.0,64776.0,0.009185]
[1721297743163,2.71316336,64777.0,64776.0,0.009185]
[1721297743681,2.69916336,64777.0,64776.0,0.009185]
[1721297744141,2.57421231,64777.0,64776.0,0.009185]
[1721297744291,2.68516499,64777.0,64776.0,0.009185]
[1721297744496,2.69916499,64777.0,64776.0,0.009185]
[1721297745034,2.8510702,64777.0,64776.0,0.009185]
[1721297745228,2.71316499,64777.0,64776.0,0.009185]
[1721297745995,2.55881542,64777.0,64776.0,0.009185]
[1721297746201,2.40021542,64777.0,64776.0,0.009185]
[1721297746403,2.40021542,64777.0,64776.0,0.150785]
[1721297746404,1.29390183,64777.0,64776.0,0.150785]
[1721297746784,0.99915083,64777.0,64776.0,0.150785]
[1721297747366,0.98554067,64777.0,64776.0,0.150785]
[1721297747576,0.95425874,64777.0,64776.0,0.150785]
[1721297748174,0.94025874,64777.0,64776.0,0.150785]
[1721297748404,1.04025874,64777.0,64776.0,0.150785]
[1721297748803,1.02625874,64777.0,64776.0,0.150785]
[1721297749278,1.04025874,64777.0,64776.0,0.150785]
[1721297749977,1.05225874,64777.0,64776.0,0.150785]
[1721297759072,1.05190844,64777.0,64776.0,0.150785]
[1721297759716,1.05273844,64777.0,64776.0,0.150785]
[1721297763599,1.05541699,64777.0,64776.0,0.150785]
[1721297764279,1.05273844,64777.0,64776.0,0.150785]
[1721297764699,0.74398744,64777.0,64776.0,0.150785]
[1721297765558,1.05273844,64777.0,64776.0,0.150785]
[1721297767308,1.05541697,64777.0,64776.0,0.150785]
[1721297769950,0.28389027,64777.0,64776.0,0.150785]
[1721297770301,0.28389027,64777.0,64776.0,0.16542232]
[1721297773009,0.28389027,64777.0,64776.0,0.16687932]
[1721297773312,0.28389027,64777.0,64776.0,0.31980032]
[1721297773501,0.28389027,64777.0,64776.0,0.16542232]
[1721297773924,0.12950853,64777.0,64776.0,0.31980032]
[1721297774134,0.02683,64777.0,64776.0,0.62855632]
[1721297775036,0.02683,64777.0,64776.0,0.93731232]
[1721297776082,0.01283,64777.0,64776.0,0.93731232]
[1721297776268,0.01283,64777.0,64776.0,1.69822432]
[1721297776469,0.01883,64777.0,64776.0,1.82642618]
[1721297776711,0.00683,64777.0,64776.0,1.82642618]
[1721297777127,0.00083,64786.0,64785.0,1.262195]
[1721297777334,0.00083,64786.0,64785.0,1.355595]
[1721297777543,0.00083,64786.0,64785.0,1.664308]
[1721297779071,0.00183,64786.0,64785.0,1.667308]
[1721297782897,0.00283,64786.0,64785.0,1.671308]
[1721297785002,0.00283,64786.0,64785.0,1.95385544]
[1721297785197,0.00083,64803.0,64802.0,0.462948]
[1721297785405,0.00083,64803.0,64802.0,0.675848]
[1721297787165,0.00683,64803.0,64802.0,0.675848]
[1721297787365,0.01383,64803.0,64802.0,0.676848]
[1721297791130,0.01383,64803.0,64802.0,0.98548]
[1721297793969,0.01383,64803.0,64802.0,0.676848]
[1721297794285,0.01383,64803.0,64802.0,0.610748]
[1721297797174,0.01650703,64803.0,64802.0,0.610748]
[1721297799009,0.01650703,64803.0,64802.0,0.225716]
[1721297799173,0.01650703,64803.0,64802.0,0.155316]
[1721297800194,0.01650703,64803.0,64802.0,0.463948]
[1721297800399,0.01605703,64803.0,64802.0,0.463948]
[1721297800744,0.01605703,64803.0,64802.0,0.534348]
[1721297809014,0.01605703,64803.0,64802.0,0.89298]
[1721297809219,0.01605703,64803.0,64802.0,1.05608]
[1721297809522,0.01338,64803.0,64802.0,1.05608]
[1721297811112,0.01338,64803.0,64802.0,1.49286768]
[1721297811614,0.01338,64803.0,64802.0,1.49286687]
[1721297812238,0.01338,64803.0,64802.0,1.44286687]
[1721297815057,0.01338,64803.0,64802.0,1.44286384]
[1721297816383,0.01338,64803.0,64802.0,0.75519984]
[1721297816583,0.01338,64803.0,64802.0,0.61509984]
[1721297818066,0.01338,64803.0,64802.0,0.486948]
[1721297818277,0.01338,64803.0,64802.0,0.61510163]
[1721297819347,0.167693,64803.0,64802.0,0.15215363]
[1721297819531,0.61922,64803.0,64802.0,0.001]
[1721297819783,1.08222874,64803.0,64802.0,0.001]
[1721297820192,0.77360174,64803.0,64802.0,0.001]
[1721297820611,0.01338,64803.0,64802.0,0.155316]
[1721297821228,0.01338,64803.0,64802.0,0.178316]
[1721297821787,0.01338,64803.0,64802.0,0.486948]
[1721297823915,0.01338,64803.0,64802.0,0.628148]
[1721297824097,0.01338,64803.0,64802.0,1.76575556]
[1721297824330,0.01338,64803.0,64802.0,2.16690495]
[1721297824521,0.01338,64803.0,64802.0,2.07438756]
[1721297824938,0.00738,64803.0,64802.0,2.07438756]
[1721297825311,0.00738,64803.0,64802.0,2.19004244]
[1721297825514,0.00738,64803.0,64802.0,2.19104244]
[1721297826132,0.00738,64803.0,64802.0,2.34542418]
[1721297826362,0.00738,64803.0,64802.0,2.2297693]
[1721297826571,0.00038,64803.0,64802.0,2.2287693]
[1721297826891,0.00038,64803.0,64802.0,2.09956299]
[1721297827092,0.00038,64803.0,64802.0,2.22769045]
[1721297827306,0.00138,64803.0,64802.0,2.23169045]
[1721297827547,0.00238,64803.0,64802.0,2.24169045]
[1721297827747,0.00138,64803.0,64802.0,2.22769045]
[1721297827966,0.00038,64803.0,64802.0,2.22769045]
[1721297828168,0.00238,64803.0,64802.0,2.24169045]
[1721297830142,0.00238,64803.0,64802.0,2.24168843]
[1721297830556,0.00238,64803.0,64802.0,2.11356129]
[1721297830759,0.00238,64803.0,64802.0,2.24168812]
[1721297831303,0.00238,64803.0,64802.0,2.35723845]
[1721297832123,0.00238,64803.0,64802.0,2.55032012]
[1721297833350,0.00083,64808.0,64802.0,2.55032012]
[1721297833535,0.00083,64808.0,64807.0,1.650836]
[1721297833734,0.00083,64808.0,64807.0,2.58404761]
[1721297833938,0.00083,64808.0,64807.0,2.60704761]
[1721297834607,0.00183,64808.0,64807.0,2.60704761]
[1721297834816,0.00283,64808.0,64807.0,2.61604761]
[1721297835174,0.00183,64808.0,64807.0,2.73148061]
[1721297836075,0.00183,64808.0,64807.0,2.95556561]
[1721297836295,0.00183,64808.0,64807.0,3.05556561]
[1721297836495,0.00283,64808.0,64807.0,3.06056561]
[1721297836699,0.00283,64808.0,64807.0,3.06050357]
[1721297837121,0.00083,64808.0,64807.0,3.04650357]
[1721297837538,0.00283,64808.0,64807.0,3.06350357]
[1721297839777,0.00283,64808.0,64807.0,2.59334374]
[1721297839976,0.00283,64808.0,64807.0,3.06350082]
[1721297842986,0.00283,64808.0,64807.0,3.06349921]
[1721297844165,0.00283,64808.0,64807.0,3.17866469]
[1721297845206,0.00283,64808.0,64807.0,3.06349921]
[1721297846229,0.00283,64808.0,64807.0,2.59334374]
[1721297846397,0.00283,64808.0,64807.0,3.06349609]
[1721297848448,0.00083,64821.0,64820.0,1.438457]
[1721297848670,0.00083,64821.0,64820.0,1.81433559]
[1721297849456,0.00083,64821.0,64820.0,1.68623874]
[1721297849656,0.00083,64821.0,64820.0,1.81433419]
[1721297850381,0.00083,64821.0,64820.0,1.82533419]
[1721297850806,0.00183,64821.0,64820.0,1.83633419]
[1721297852678,0.00183,64821.0,64820.0,1.83633332]
[1721297856111,0.00183,64821.0,64820.0,1.76593332]
[1721297856489,0.00183,64821.0,64820.0,1.83633332]
[1721297857448,0.00183,64821.0,64820.0,1.76593332]
[1721297857895,0.00183,64821.0,64820.0,1.83633332]
[1721297858663,0.14573,64821.0,64820.0,1.83633332]
[1721297859074,0.06643,64821.0,64820.0,1.70823874]
[1721297859286,0.06643,64821.0,64820.0,1.83633404]
[1721297860328,0.06643,64821.0,64820.0,1.850774]
[1721297862240,0.06643,64821.0,64820.0,1.85077331]
[1721297862519,0.00183,64821.0,64820.0,1.8507733]
[1721297862730,0.00183,64821.0,64820.0,1.7226787]
[1721297862934,0.00183,64821.0,64820.0,1.8507733]
[1721297864302,0.00183,64821.0,64820.0,2.04701929]
[1721297865089,0.00183,64821.0,64820.0,2.09310726]
[1721297865289,0.00183,64821.0,64820.0,2.09310861]
[1721297865787,0.00183,64821.0,64820.0,2.09312717]
[1721297866107,0.00183,64821.0,64820.0,2.04702076]
[1721297867322,0.00183,64821.0,64820.0,2.09312717]
[1721297868196,0.00183,64821.0,64820.0,2.45822988]
[1721297868383,0.00183,64821.0,64820.0,2.11618037]
[1721297868785,0.00183,64821.0,64820.0,1.76883006]
[1721297868981,0.00183,64821.0,64820.0,1.89692914]
[1721297869184,0.00183,64821.0,64820.0,2.2620628]
[1721297869623,0.00183,64821.0,64820.0,2.19283575]
[1721297870031,0.00183,64821.0,64820.0,2.26210301]
[1721297870237,0.00183,64821.0,64820.0,2.19283575]
[1721297872268,0.00183,64821.0,64820.0,2.15715558]
[1721297872499,0.00183,64821.0,64820.0,2.28525206]
[1721297873459,0.00183,64821.0,64820.0,2.19282968]
[1721297873900,0.00183,64821.0,64820.0,2.28525206]
[1721297874466,0.00183,64821.0,64820.0,2.19282968]
[1721297874804,0.00183,64821.0,64820.0,2.28528655]
[1721297875216,0.00183,64821.0,64820.0,2.19282968]
[1721297875652,0.00183,64821.0,64820.0,2.39230395]
[1721297875857,0.00183,64821.0,64820.0,2.19282966]
[1721297877247,0.00183,64821.0,64820.0,2.30842618]
[1721297877756,0.00183,64821.0,64820.0,1.85077517]
[1721297877961,0.00183,64821.0,64820.0,2.30849527]
[1721297878377,0.00183,64821.0,64820.0,2.19283402]
[1721297878701,0.00183,64821.0,64820.0,2.06473755]
[1721297878904,0.00183,64821.0,64820.0,2.19283565]
[1721297880395,0.00183,64821.0,64820.0,2.12243565]
[1721297880604,0.00183,64821.0,64820.0,2.14283565]
[1721297880809,0.13813,64821.0,64820.0,1.08517846]
[1721297881011,0.13813,64821.0,64820.0,0.96941591]
[1721297881217,0.13813,64821.0,64820.0,1.34747547]
[1721297881419,0.13813,64821.0,64820.0,1.00537884]
[1721297882167,0.13813,64821.0,64820.0,0.92491721]
[1721297882369,0.13813,64821.0,64820.0,0.94791721]
[1721297882815,0.13713,64821.0,64820.0,0.93691721]
[1721297883456,0.13713,64821.0,64820.0,0.98821096]
[1721297883982,0.13713,64821.0,64820.0,0.99221096]
[1721297884432,0.13713,64821.0,64820.0,0.99221307]
[1721297885360,0.13713,64821.0,64820.0,0.94591932]
[1721297887595,0.13713,64821.0,64820.0,0.81780496]
[1721297887764,0.13713,64821.0,64820.0,0.94591932]
[1721297890769,0.13713,64821.0,64820.0,0.81780496]
[1721297890970,0.13713,64821.0,64820.0,0.94591941]
[1721297894372,0.13713,64821.0,64820.0,0.94591944]
[1721297895822,1.13326374,64821.0,64820.0,0.02343996]
[1721297896027,1.24705974,64821.0,64820.0,0.02343996]
[1721297896239,1.28555154,64821.0,64820.0,0.02343996]
[1721297896457,1.58029654,64821.0,64820.0,0.02343996]
[1721297897029,1.58029654,64821.0,64820.0,0.01843996]
[1721297897411,1.58074795,64821.0,64820.0,0.01843996]
[1721297898048,1.58374795,64821.0,64820.0,0.01443996]
[1721297898348,1.54480474,64821.0,64820.0,0.01443996]
[1721297898549,1.54980474,64821.0,64820.0,0.01543996]
[1721297898717,1.54480474,64821.0,64820.0,0.01443996]
[1721297899128,1.54980474,64821.0,64820.0,0.01543996]
[1721297899288,1.54680474,64821.0,64820.0,0.01543996]
[1721297899709,1.55680474,64821.0,64820.0,0.01643996]
[1721297900132,1.55949121,64821.0,64820.0,0.01643996]
[1721297900791,1.48909121,64821.0,64820.0,0.01643996]
[1721297900998,1.55949121,64821.0,64820.0,0.01643996]
[1721297901535,1.55949121,64821.0,64808.0,0.000913]
[1721297901536,1.080096,64809.0,64808.0,0.000913]
[1721297901755,1.44497774,64809.0,64808.0,0.000913]
[1721297902110,1.54497774,64809.0,64808.0,0.000913]
[1721297903398,1.54997774,64809.0,64808.0,0.001913]
[1721297903755,1.55697774,64809.0,64808.0,0.002913]
[1721297906591,1.86557674,64809.0,64808.0,0.002913]
[1721297906998,1.90439741,64809.0,64808.0,0.002913]
[1721297907310,1.86557674,64809.0,64808.0,0.002913]
[1721297913347,1.86557674,64809.0,64794.0,0.025]
[1721297913348,0.297032,64795.0,64794.0,0.025]
[1721297913487,0.86007874,64795.0,64794.0,0.025]
[1721297914287,1.78607374,64795.0,64794.0,0.025]
[1721297916236,1.78607374,64795.0,64794.0,0.028]
[1721297916853,1.81407374,64795.0,64794.0,0.029]
[1721297917488,1.78607374,64795.0,64794.0,0.025]
[1721297917960,1.80007374,64795.0,64794.0,0.026]
[1721297918546,1.95442331,64795.0,64794.0,0.026]
[1721297918754,1.80007374,64795.0,64794.0,0.026]
[1721297918958,1.81407374,64795.0,64794.0,0.027]
[1721297919670,1.81407374,64795.0,64794.0,0.027913]
[1721297920331,1.81675802,64795.0,64794.0,0.027913]
[1721297920503,1.88715802,64795.0,64794.0,0.027913]
[1721297925729,1.50809302,64795.0,64794.0,0.027913]
[1721297925938,1.57849302,64795.0,64794.0,0.027913]
[1721297926921,1.56449302,64795.0,64794.0,0.026913]
[1721297927417,1.56449302,64795.0,64794.0,0.027913]
[1721297927544,1.56449302,64795.0,64794.0,0.026913]
[1721297928177,1.55049302,64795.0,64794.0,0.025913]
[1721297928808,1.56449302,64795.0,64794.0,0.026913]
[1721297929013,1.57849302,64795.0,64794.0,0.027913]
[1721297929216,1.88715802,64795.0,64794.0,0.027913]
[1721297929376,1.57849302,64795.0,64794.0,0.027913]
[1721297929593,1.56449302,64795.0,64794.0,0.026913]
[1721297929790,1.56449302,64795.0,64794.0,0.027913]
[1721297930142,1.57849302,64795.0,64794.0,0.027913]
[1721297930314,1.88715802,64795.0,64794.0,0.027913]
[1721297930882,1.88715802,64795.0,64794.0,0.002913]
[1721297932344,1.57849302,64795.0,64794.0,0.002913]
[1721297932803,1.88715802,64795.0,64794.0,0.002913]
[1721297934125,1.57849302,64795.0,64794.0,0.002913]
[1721297935366,1.61950851,64795.0,64794.0,0.002913]
[1721297935527,1.92817351,64795.0,64794.0,0.002913]
[1721297935954,1.88715802,64795.0,64794.0,0.002913]
[1721297936155,1.92817366,64795.0,64794.0,0.002913]
[1721297939734,1.92811225,64795.0,64794.0,0.002913]
[1721297942546,1.92828548,64795.0,64794.0,0.002913]
[1721297945383,2.23695048,64795.0,64794.0,0.002913]
[1721297945820,1.92828548,64795.0,64794.0,0.002913]
[1721297946018,1.88715802,64795.0,64794.0,0.002913]
[1721297946215,1.92862455,64795.0,64794.0,0.002913]
[1721297946637,2.23728955,64795.0,64794.0,0.002913]
[1721297948580,2.39163912,64795.0,64794.0,0.002913]
[1721297949233,2.19582302,64795.0,64794.0,0.002913]
[1721297949432,1.92872267,64795.0,64794.0,0.002913]
[1721297950121,2.23738767,64795.0,64794.0,0.002913]
[1721297950325,1.92872267,64795.0,64794.0,0.002913]
[1721297952635,1.92873346,64795.0,64794.0,0.002913]
[1721297956314,2.00569099,64795.0,64794.0,0.002913]
[1721297959226,2.00564703,64795.0,64794.0,0.002913]
[1721297959602,1.88715802,64795.0,64794.0,0.002913]
[1721297959829,2.00575608,64795.0,64794.0,0.002913]
[1721297960230,2.00574752,64795.0,64794.0,0.002913]
[1721297960554,2.31441252,64795.0,64794.0,0.002913]
[1721297960811,2.86441252,64795.0,64794.0,0.002913]
[1721297961029,3.01876209,64795.0,64794.0,1e-06]
[1721297961228,1.843171,64783.0,64782.0,0.025]
[1721297961377,2.18654224,64783.0,64782.0,0.025]
[1721297961589,2.28654224,64783.0,64782.0,0.02495]
[1721297961785,1.69813,64777.0,64776.0,0.02382232]
[1721297961985,2.20972199,64777.0,64776.0,0.02382232]
[1721297962188,2.32473275,64777.0,64776.0,0.02382232]
[1721297962528,2.32485418,64777.0,64776.0,0.02382232]
[1721297962812,1.90109614,64777.0,64776.0,0.02382232]
[1721297963009,2.01610542,64777.0,64776.0,0.02382232]
[1721297963150,1.83069614,64777.0,64776.0,0.02382232]
[1721297963360,1.90109614,64777.0,64776.0,0.02382232]
[1721297963782,2.20984714,64777.0,64776.0,0.02382232]
[1721297963996,2.01610542,64777.0,64776.0,0.02382232]
[1721297964251,1.90109614,64777.0,64776.0,0.02382232]
[1721297964404,2.01610542,64777.0,64776.0,0.02382232]
[1721297964816,2.18445499,64777.0,64776.0,0.02382232]
[1721297965264,1.92909614,64777.0,64776.0,0.02382232]
[1721297965641,1.88736074,64777.0,64776.0,0.02382232]
[1721297965859,1.92937714,64777.0,64776.0,0.02382232]
[1721297966044,1.85897714,64777.0,64776.0,0.02382232]
[1721297966287,1.92937714,64777.0,64776.0,0.02382232]
[1721297968996,1.92965639,64777.0,64776.0,0.02382232]
[1721297974941,2.08400596,64777.0,64776.0,0.02382232]
[1721297975376,2.0839215,64777.0,64776.0,0.02382232]
[1721297976938,2.3926725,64777.0,64776.0,0.02382232]
[1721297977146,2.46997672,64777.0,64776.0,0.02382232]
[1721297977365,2.51997672,64777.0,64776.0,0.02382232]
[1721297978420,2.40046131,64777.0,64776.0,0.02382232]
[1721297978623,2.51857062,64777.0,64776.0,0.02382232]
[1721297978982,2.59574541,64777.0,64776.0,0.02382232]
[1721297980738,2.90449641,64777.0,64776.0,0.02382232]
[1721297980874,2.59574541,64777.0,64776.0,0.02382232]
[1721297981512,2.90437259,64777.0,64776.0,0.02382232]
[1721297982993,2.90437259,64777.0,64776.0,3.2e-07]
[1721297983985,2.55707,64771.0,64770.0,1e-06]
[1721297984135,0.154404,64765.0,64764.0,0.0072119]
[1721297984334,0.55908953,64765.0,64764.0,0.0072119]
[1721297984586,1.89432153,64765.0,64764.0,0.0072119]
[1721297984805,1.89432153,64765.0,64764.0,9e-07]
[1721297984806,2.21451355,64765.0,64764.0,9e-07]
[1721297984995,2.71873978,64765.0,64764.0,9e-07]
[1721297985145,1.389789,64758.0,64741.0,0.0813]
[1721297985354,1.94423539,64758.0,64741.0,0.0813]
[1721297985716,1.94423539,64758.0,64723.0,0.309006]
[1721297985717,0.1461,64752.0,64726.0,0.001457]
[1721297985911,0.463398,64739.0,64722.0,0.001457]
[1721297986172,1.44304137,64739.0,64721.0,0.0931667]
[1721297986398,1.9647531,64739.0,64721.0,0.0931667]
[1721297986591,2.18839219,64739.0,64721.0,0.0931667]
[1721297987023,2.09245921,64739.0,64721.0,0.0931667]
[1721297988659,2.14245921,64739.0,64721.0,0.0145667]
[1721297988878,2.10645921,64739.0,64721.0,0.0145667]
[1721297989074,2.12045921,64739.0,64721.0,0.0145667]
[1721297989339,2.57809121,64739.0,64721.0,0.47761541]
[1721297989475,2.71844078,64739.0,64721.0,0.47761541]
[1721297989681,2.42350878,64739.0,64721.0,0.47761541]
[1721297990228,2.40950878,64739.0,64721.0,0.47761541]
[1721297990429,2.24680878,64739.0,64721.0,0.47761541]
[1721297990928,2.21974413,64739.0,64721.0,0.47761541]
[1721297991066,2.76126761,64739.0,64721.0,0.47761541]
[1721297991269,2.70574413,64739.0,64721.0,0.47761541]
[1721297991473,2.7472671,64739.0,64721.0,0.47761541]
[1721297991730,2.7612671,64739.0,64721.0,0.47761541]
[1721297991906,2.7612671,64739.0,64727.0,0.0768]
[1721297992113,1.33564374,64739.0,64731.0,0.0647]
[1721297992339,1.04071174,64739.0,64731.0,0.0647]
[1721297992637,1.34964374,64739.0,64731.0,0.0647]
[1721297992789,1.36364374,64739.0,64731.0,0.0647]
[1721297993332,1.34964374,64739.0,64731.0,0.0647]
[1721297993634,1.51799331,64739.0,64731.0,0.0647]
[1721297993852,1.48999331,64739.0,64731.0,0.0647]
[1721297994052,1.50399331,64739.0,64731.0,0.0647]
[1721297994259,1.04071174,64739.0,64737.0,0.091974]
[1721297994433,0.73177974,64739.0,64737.0,0.009174]
[1721297994637,1.05471174,64739.0,64737.0,0.009174]
[1721297995011,1.04071174,64739.0,64737.0,0.009174]
[1721297995450,1.05471174,64739.0,64737.0,0.009174]
[1721297995652,1.10374922,64739.0,64737.0,0.009174]
[1721297996577,1.41268122,64739.0,64737.0,0.009174]
[1721297996785,1.39868122,64739.0,64737.0,0.009174]
[1721297996984,1.08974922,64739.0,64737.0,0.009174]
[1721297997183,1.10374922,64739.0,64737.0,0.009174]
[1721297997522,1.57498122,64739.0,64737.0,0.009174]
[1721297998098,1.58898122,64739.0,64737.0,0.009174]
[1721297998506,1.57498122,64739.0,64737.0,0.009174]
[1721297998910,1.58898122,64739.0,64737.0,0.009174]
[1721298000473,1.23101174,64739.0,64737.0,0.009174]
[1721298000608,1.05471174,64739.0,64737.0,0.009174]
[1721298001667,0.71777974,64739.0,64738.0,0.147774]
[1721298001864,0.40884774,64739.0,64738.0,0.147774]
[1721298002071,1.04071174,64739.0,64738.0,0.15804729]
[1721298002634,1.04071174,64739.0,64738.0,0.01944729]